[Event "ISR-ch Youth 2019"]
[Site "Jerusalem"]
[Date "2019.04.14"]
[Round "4.5"]
[White "Vagman, Roy"]
[Black "Cohen, Elad"]
[Result "1/2-1/2"]
[ECO "C45"]
[WhiteElo "1959"]
[BlackElo "1828"]
[Annotator "NA"]
[PlyCount "112"]
[EventDate "2019.04.11"]
[EventType "swiss"]
[EventCountry "ISR"]
[SourceTitle "playchess.com"]
[Source "ChessBase"]
[SourceQuality "1"]
[TimeControl "5400+30"]

1. e4 {[%emt 0:00:00]} e5 {[%emt 0:00:00]} 2. Nf3 {[%emt 0:00:37]} Nc6 {[%emt 0:00:27]} 3. d4 {[%emt 0:00:44]} exd4 {[%emt 0:00:13]} 4. Nxd4 {[%emt 0:00:21]} Nf6 {[%emt 0:00:19]} 5. Nxc6 {[%emt 0:00:40]} bxc6 {[%emt 0:00:12]} 6. Bd3 {[%emt 0:00:59]} d5 {[%emt 0:01:01]} 7. exd5 {[%emt 0:00:25]} cxd5 {[%emt 0:00:24]} 8. O-O {[%emt 0:00:30]} Be7 {[%emt 0:00:42]} 9. Bf4 {[%emt 0:01:30]} O-O {[%emt 0:00:25]} 10. Nc3 {[%emt 0:00:52]} Bd6 {[%emt 0:01:42]} 11. Qd2 {[%emt 0:01:56]} Be6 {[%emt 0:01:33]} 12. Rfe1 {[%emt 0:03:18]} Bxf4 {[%emt 0:00:48]} 13. Qxf4 {[%emt 0:00:13]} c5 {[%emt 0:00:50]} 14. b3 {[%emt 0:11:45]} Qa5 {[%emt 0:19:52]} 15. Ne2 {[%emt 0:04:00]} Rac8 {[%emt 0:08:06]} 16. c4 {[%emt 0:02:59]} Rfd8 {[%emt 0:10:32]} 17. Ng3 {[%emt 0:05:18]} dxc4 {[%emt 0:06:57]} 18. Bxc4 {[%emt 0:01:35]} Rd4 {[%emt 0:02:16]} 19. Qe5 {[%emt 0:00:19]} Bxc4 {[%emt 0:03:33]} 20. bxc4 {[%emt 0:00:50]} Rdd8 {[%emt 0:12:02]} 21. Red1 {[%emt 0:11:32]} Re8 {[%emt 0:09:05]} 22. Qf4 {[%emt 0:03:16]} Rcd8 {[%emt 0:03:00]} 23. Rxd8 {[%emt 0:01:07]} Qxd8 {[%emt 0:00:55]} 24. h3 {[%emt 0:01:11]} Qb8 {[%emt 0:03:30]} 25. Qg5 {[%emt 0:03:13]} Qe5 {[%emt 0:02:03]} 26. Qxe5 {[%emt 0:00:10]} Rxe5 {[%emt 0:00:00]} 27. Rb1 {[%emt 0:00:13]} g6 {[%emt 0:01:42]} 28. Rb7 {[%emt 0:00:25]} Re1+ {[%emt 0:01:08]} 29. Kh2 {[%emt 0:00:10]} Rc1 {[%emt 0:00:23]} 30. Rxa7 {[%emt 0:00:47]} Rxc4 {[%emt 0:00:12]} 31. Nf1 {[%emt 0:08:24]} Rc2 {[%emt 0:01:58]} 32. Kg1 {[%emt 0:02:29]} Rc1 {[%emt 0:01:22]} 33. f3 {[%emt 0:01:47]} c4 {[%emt 0:00:29]} 34. Kf2 {[%emt 0:01:31]} Rc2+ {[%emt 0:00:22]} 35. Kg3 {[%emt 0:10:44]} Nh5+ {[%emt 0:05:53]} 36. Kh2 {[%emt 0:00:47]} Nf4 {[%emt 0:01:18]} 37. Ne3 {[%emt 0:00:02]} Re2 {[%emt 0:00:05]} 38. Ra3 {[%emt 0:02:05]} h5 {[%emt 0:00:51]} 39. h4 {[%emt 0:01:09]} Rb2 {[%emt 0:00:34]} 40. Ra4 {[%emt 0:03:25]} Re2 {[%emt 0:00:34]} 41. Ra3 {[%emt 0:01:24]} f6 {[%emt 0:02:11]} 42. Kg1 {[%emt 0:04:52]} Kg7 {[%emt 0:00:45]} 43. Kf1 {[%emt 0:00:31]} Rb2 {[%emt 0:00:32]} 44. Ra7+ {[%emt 0:08:28]} Kf8 {[%emt 0:00:27]} 45. Nxc4 {[%emt 0:00:32]} Rxg2 {[%emt 0:00:11]} 46. a4 {[%emt 0:00:22]} Ra2 {[%emt 0:00:24]} 47. a5 {[%emt 0:00:33]} Nd5 {[%emt 0:00:42]} 48. Nd6 {[%emt 0:02:10]} g5 {[%emt 0:00:22]} 49. Nf5 {[%emt 0:00:29]} gxh4 {[%emt 0:00:25]} 50. Nxh4 {[%emt 0:00:21]} Nb4 {[%emt 0:00:39]} 51. Ng6+ {[%emt 0:00:46]} Ke8 {[%emt 0:00:15]} 52. f4 {[%emt 0:00:50]} Nc6 {[%emt 0:00:38]} 53. Ra8+ {[%emt 0:00:37]} Kf7 {[%emt 0:00:08]} 54. f5 {[%emt 0:00:52]} Rxa5 {[%emt 0:01:20]} 55. Rxa5 {[%emt 0:00:16]} Nxa5 {[%emt 0:00:01]} 56. Nf4 {[%emt 0:00:13]} Nc4 {[%emt 0:00:25]} 1/2-1/2

[Event "ISR-ch Youth 2019"]
[Site "Jerusalem"]
[Date "2019.04.14"]
[Round "4.6"]
[White "Tsirilman, Guy"]
[Black "Neeman, Gal"]
[Result "1/2-1/2"]
[ECO "B42"]
[WhiteElo "1812"]
[BlackElo "1715"]
[Annotator "NA"]
[PlyCount "93"]
[EventDate "2019.04.11"]
[EventType "swiss"]
[EventCountry "ISR"]
[SourceTitle "playchess.com"]
[Source "ChessBase"]
[SourceQuality "1"]
[TimeControl "5400+30"]

1. e4 {[%emt 0:00:00]} c5 {[%emt 0:00:00]} 2. Nf3 {[%emt 0:00:21]} e6 {[%emt 0:00:00]} 3. d4 {[%emt 0:00:50]} cxd4 {[%emt 0:00:00]} 4. Nxd4 {[%emt 0:00:14]} a6 {[%emt 0:00:00]} 5. Bd3 {[%emt 0:00:24] LiveBook: 12749 Games} Nf6 $14 {[%emt 0:00:00]} 6. O-O {[%emt 0:01:52]} Bc5 {[%emt 0:00:39]} 7. Nb3 {[%emt 0:00:51]} Ba7 {[%emt 0:00:03]} 8. e5 {[%emt 0:03:57]} Nd5 {[%emt 0:01:50]} 9. Qg4 {[%emt 0:03:54]} g6 {[%emt 0:08:33]} 10. N1d2 {[%emt 0:07:58]} Nc6 {[%emt 0:04:34]} 11. Ne4 {[%emt 0:08:57]} O-O {[%emt 0:23:37]} 12. Bg5 {[%emt 0:03:25]} Nxe5 {[%emt 0:05:37]} 13. Qg3 {[%emt 0:02:12]} f6 {[%emt 0:02:52]} 14. Nxf6+ {[%emt 0:01:27]} Nxf6 {[%emt 0:00:07]} 15. Qxe5 {[%emt 0:00:07]} Ng4 {[%emt 0:02:32]} 16. Bxd8 {[%emt 0:01:54]} Nxe5 {[%emt 0:00:50]} 17. Be7 {[%emt 0:00:23]} Rf7 {[%emt 0:02:40]} 18. Bc5 {[%emt 0:01:51]} Nxd3 {[%emt 0:01:09]} 19. cxd3 {[%emt 0:00:31]} Bxc5 {[%emt 0:02:28]} 20. Nxc5 {[%emt 0:00:06]} Rf5 {[%emt 0:00:29]} 21. Ne4 {[%emt 0:02:04]} Kg7 {[%emt 0:01:24]} 22. Rac1 {[%emt 0:00:47]} Rd5 {[%emt 0:00:52]} 23. Rc3 {[%emt 0:00:37]} b6 {[%emt 0:03:39]} 24. Rfc1 {[%emt 0:02:33]} Bb7 {[%emt 0:01:14]} 25. f3 {[%emt 0:00:33]} Rb8 {[%emt 0:08:02]} 26. Kf2 {[%emt 0:00:32]} a5 {[%emt 0:00:14]} 27. Ke3 {[%emt 0:02:59]} Ba6 {[%emt 0:00:43]} 28. d4 {[%emt 0:02:47]} b5 {[%emt 0:06:32]} 29. Nc5 {[%emt 0:03:05]} Rb6 {[%emt 0:01:01]} 30. Nxa6 {[%emt 0:03:07]} Rxa6 {[%emt 0:00:02]} 31. Rc5 {[%emt 0:00:28]} Rad6 {[%emt 0:00:54]} 32. Rxd5 {[%emt 0:00:06]} Rxd5 {[%emt 0:00:05]} 33. Ke4 {[%emt 0:00:48]} Kf6 {[%emt 0:03:33]} 34. g4 {[%emt 0:01:58]} h5 {[%emt 0:02:12]} 35. h4 {[%emt 0:02:05]} g5 {[%emt 0:03:49]} 36. hxg5+ {[%emt 0:01:17]} Rxg5 {[%emt 0:00:10]} 37. gxh5 {[%emt 0:01:23]} Rxh5 {[%emt 0:00:02]} 38. Rc5 {[%emt 0:02:04]} Rxc5 {[%emt 0:03:04]} 39. dxc5 {[%emt 0:00:06]} b4 {[%emt 0:05:48]} 40. b3 {[%emt 0:00:12]} Kf7 {[%emt 0:01:46]} 41. Ke5 {[%emt 0:00:34]} Ke7 {[%emt 0:00:09]} 42. f4 {[%emt 0:00:31]} d6+ {[%emt 0:00:31]} 43. cxd6+ {[%emt 0:02:14]} Kd7 {[%emt 0:00:02]} 44. Ke4 {[%emt 0:01:02]} Kxd6 {[%emt 0:00:03]} 45. Kd4 {[%emt 0:00:11]} Kc6 {[%emt 0:00:26]} 46. Ke5 {[%emt 0:01:04]} Kd7 {[%emt 0:00:01]} 47. Ke4 {[%emt 0:37:09]} 1/2-1/2

[Event "ISR-ch Youth 2019"]
[Site "Jerusalem"]
[Date "2019.04.14"]
[Round "4.7"]
[White "Ribstein, Orel"]
[Black "Sternfeld, Tomer"]
[Result "1-0"]
[ECO "E04"]
[WhiteElo "1708"]
[BlackElo "1152"]
[Annotator "NA"]
[PlyCount "63"]
[EventDate "2019.04.11"]
[EventType "swiss"]
[EventCountry "ISR"]
[SourceTitle "playchess.com"]
[Source "ChessBase"]
[SourceQuality "1"]
[TimeControl "5400+30"]

1. d4 {[%emt 0:00:00]} Nf6 {[%emt 0:00:00]} 2. c4 {[%emt 0:00:00]} e6 {[%emt 0:00:00]} 3. g3 {[%emt 0:00:00]} d5 {[%emt 0:00:27]} 4. Nf3 {[%emt 0:00:00]} dxc4 {[%emt 0:01:15]} 5. Bg2 {[%emt 0:00:06]} b6 {[%emt 0:03:32]} 6. Ne5 {[%emt 0:06:27]} Nd5 {[%emt 0:01:44]} 7. Qa4+ {[%emt 0:02:57]} Nd7 {[%emt 0:08:00]} 8. O-O {[%emt 0:02:59]} Bb7 {[%emt 0:02:10]} 9. e4 {[%emt 0:02:36]} N5f6 {[%emt 0:01:35]} 10. Nc3 {[%emt 0:05:55]} a6 {[%emt 0:01:06]} 11. Nc6 {[%emt 0:09:54]} Qc8 {[%emt 0:04:00]} 12. e5 {[%emt 0:00:24]} b5 {[%emt 0:00:32]} 13. Qc2 {[%emt 0:01:36]} Nd5 {[%emt 0:00:55]} 14. Nxd5 {[%emt 0:01:31]} Bxc6 {[%emt 0:00:19]} 15. Nf6+ {[%emt 0:00:21]} gxf6 {[%emt 0:02:53]} 16. Bxc6 {[%emt 0:00:15]} fxe5 {[%emt 0:02:48]} 17. dxe5 {[%emt 0:00:38]} Ke7 {[%emt 0:03:57]} 18. Bg5+ {[%emt 0:01:02]} f6 {[%emt 0:00:18]} 19. Bxd7 {[%emt 0:00:31]} Kxd7 {[%emt 0:01:33]} 20. Bxf6 {[%emt 0:00:11]} Rg8 {[%emt 0:00:36]} 21. Qxh7+ {[%emt 0:00:02]} Bg7 {[%emt 0:01:46]} 22. Bxg7 {[%emt 0:00:20]} Kc6 {[%emt 0:00:52]} 23. Qe4+ {[%emt 0:00:27]} Kb6 {[%emt 0:00:35]} 24. Bh6 {[%emt 0:00:52]} Rh8 {[%emt 0:01:11]} 25. Be3+ {[%emt 0:00:16]} c5 {[%emt 0:00:24]} 26. b4 {[%emt 0:00:14]} Qe8 {[%emt 0:00:40]} 27. Bxc5+ {[%emt 0:00:27]} Kc7 {[%emt 0:00:25]} 28. Bd6+ {[%emt 0:00:01]} Kd7 {[%emt 0:01:15]} 29. Qb7+ {[%emt 0:00:10]} Kd8 {[%emt 0:00:19]} 30. Qxa8+ {[%emt 0:00:03]} Kd7 {[%emt 0:00:20]} 31. Qb7+ {[%emt 0:00:02]} Kd8 {[%emt 0:00:14]} 32. Qc7# {[%emt 0:00:03]} 1-0

[Event "ISR-ch Youth 2019"]
[Site "Jerusalem"]
[Date "2019.04.14"]
[Round "4.8"]
[White "Ostrovsky Berman, Noam"]
[Black "Blumenthal, Michael"]
[Result "1/2-1/2"]
[ECO "B70"]
[WhiteElo "1545"]
[BlackElo "1277"]
[Annotator "NA"]
[PlyCount "83"]
[EventDate "2019.04.11"]
[EventType "swiss"]
[EventCountry "ISR"]
[SourceTitle "playchess.com"]
[Source "ChessBase"]
[SourceQuality "1"]
[TimeControl "5400+30"]

1. e4 {[%emt 0:00:00]} c5 {[%emt 0:00:00]} 2. Nf3 {[%emt 0:00:00]} Nc6 {[%emt 0:00:00]} 3. d4 {[%emt 0:00:00]} cxd4 {[%emt 0:00:00]} 4. Nxd4 {[%emt 0:00:00]} Nf6 {[%emt 0:00:00]} 5. Nc3 {[%emt 0:00:00]} d6 {[%emt 0:00:06]} 6. g3 {[%emt 0:00:02]} g6 {[%emt 0:00:16]} 7. Bg2 {[%emt 0:00:07]} Nxd4 {[%emt 0:01:01]} 8. Qxd4 {[%emt 0:00:10]} Bg7 {[%emt 0:00:15]} 9. Qa4+ {[%emt 0:00:45]} Bd7 {[%emt 0:00:53]} 10. Qb3 {[%emt 0:01:36]} Bc6 {[%emt 0:00:57]} 11. O-O {[%emt 0:01:27]} O-O {[%emt 0:01:06]} 12. Nd5 {[%emt 0:12:53]} e6 {[%emt 0:08:24]} 13. Nc3 {[%emt 0:00:42]} Nd7 {[%emt 0:06:16]} 14. Rd1 {[%emt 0:05:12]} Nc5 {[%emt 0:02:00]} 15. Qc4 {[%emt 0:08:10]} Qe7 {[%emt 0:12:31]} 16. Rb1 {[%emt 0:10:03]} Rac8 {[%emt 0:13:58]} 17. Nb5 {[%emt 0:12:34]} Bxb5 {[%emt 0:07:21]} 18. Qxb5 {[%emt 0:00:09]} Rfd8 {[%emt 0:06:27]} 19. Qe2 {[%emt 0:10:11]} b6 {[%emt 0:07:59]} 20. Be3 {[%emt 0:03:27]} Rc7 {[%emt 0:04:36]} 21. c3 {[%emt 0:02:16]} Rdc8 {[%emt 0:03:27]} 22. Qd2 {[%emt 0:02:09]} Nb7 {[%emt 0:01:49]} 23. Bh3 {[%emt 0:02:24]} Rd7 {[%emt 0:03:59]} 24. Qc2 {[%emt 0:01:53]} Na5 {[%emt 0:01:41]} 25. Rd3 {[%emt 0:03:05]} b5 {[%emt 0:01:53]} 26. Bd4 {[%emt 0:02:51]} b4 {[%emt 0:04:10]} 27. Bxg7 {[%emt 0:01:33]} Kxg7 {[%emt 0:00:07]} 28. Qa4 {[%emt 0:00:44]} Nc6 {[%emt 0:01:46]} 29. cxb4 {[%emt 0:00:22]} Ne5 {[%emt 0:01:11]} 30. Rc3 {[%emt 0:01:29]} Rxc3 {[%emt 0:01:57]} 31. bxc3 {[%emt 0:00:05]} Nf3+ {[%emt 0:02:11]} 32. Kg2 {[%emt 0:00:12]} Ng5 {[%emt 0:01:06]} 33. Qc2 {[%emt 0:01:12]} Nxh3 {[%emt 0:01:21]} 34. Kxh3 {[%emt 0:00:07]} Qf6 {[%emt 0:01:32]} 35. Kg2 {[%emt 0:01:39]} Rc7 {[%emt 0:00:28]} 36. Rc1 {[%emt 0:00:05]} d5 {[%emt 0:01:07]} 37. exd5 {[%emt 0:01:06]} exd5 {[%emt 0:00:08]} 38. Qd3 {[%emt 0:00:32]} Qc6 {[%emt 0:00:52]} 39. Rd1 {[%emt 0:02:04]} d4+ {[%emt 0:01:12]} 40. Qf3 {[%emt 0:00:39]} Qxf3+ {[%emt 0:00:49]} 41. Kxf3 {[%emt 0:00:52]} dxc3 {[%emt 0:00:29]} 42. Rc1 {[%emt 0:02:08]} 1/2-1/2

[Event "ISR-ch Youth 2019"]
[Site "Jerusalem"]
[Date "2019.04.14"]
[Round "4.9"]
[White "Tadmor, Maya"]
[Black "Levitan, Ronit"]
[Result "1-0"]
[ECO "C30"]
[WhiteElo "1533"]
[BlackElo "2032"]
[Annotator "NA"]
[PlyCount "59"]
[EventDate "2019.04.11"]
[EventType "swiss"]
[EventCountry "ISR"]
[SourceTitle "playchess.com"]
[Source "ChessBase"]
[SourceQuality "1"]
[TimeControl "5400+30"]

1. e4 {[%emt 0:00:00]} e5 {[%emt 0:00:00]} 2. Bc4 {[%emt 0:00:00]} Nf6 {[%emt 0:00:12]} 3. d3 {[%emt 0:00:04]} Bc5 {[%emt 0:00:26]} 4. Nc3 {[%emt 0:00:31]} Nc6 {[%emt 0:01:50]} 5. f4 {[%emt 0:00:55]} d6 {[%emt 0:00:08]} 6. Nf3 {[%emt 0:00:59]} Bg4 {[%emt 0:00:22]} 7. Na4 {[%emt 0:01:24]} Bb6 {[%emt 0:00:12]} 8. Nxb6 {[%emt 0:00:20]} axb6 {[%emt 0:00:06]} 9. O-O {[%emt 0:02:55]} O-O {[%emt 0:01:36]} 10. c3 {[%emt 0:01:05]} exf4 {[%emt 0:02:40]} 11. Bxf4 {[%emt 0:07:08]} d5 {[%emt 0:00:18]} 12. exd5 {[%emt 0:08:04]} Nxd5 {[%emt 0:01:09]} 13. Qd2 {[%emt 0:06:37]} Nxf4 {[%emt 0:07:52]} 14. Qxf4 {[%emt 0:01:23]} Qd7 $18 {[%emt 0:09:16]} (14... Be6 $14) 15. Ng5 {[%emt 0:13:01]} Nd8 {[%emt 0:23:59]} 16. Qe4 {[%emt 0:03:04]} g6 {[%emt 0:03:34]} 17. h3 {[%emt 0:07:39]} Be6 {[%emt 0:09:42]} 18. Qh4 {[%emt 0:10:25]} h5 {[%emt 0:05:58]} 19. Ne4 {[%emt 0:05:22]} Kg7 {[%emt 0:06:24]} 20. Qf6+ {[%emt 0:01:54]} Kg8 {[%emt 0:00:24]} 21. Qg5 {[%emt 0:00:55]} Kg7 {[%emt 0:04:14]} 22. Nf6 {[%emt 0:02:47]} Qd6 {[%emt 0:05:50]} 23. Nxh5+ {[%emt 0:02:36]} Kg8 {[%emt 0:02:26]} 24. Nf6+ {[%emt 0:01:59]} Kg7 {[%emt 0:00:06]} 25. Ne4 {[%emt 0:05:43]} Qd7 {[%emt 0:01:43]} 26. Qf6+ {[%emt 0:01:54]} Kg8 {[%emt 0:03:14]} 27. Rf4 {[%emt 0:03:19]} Ra5 {[%emt 0:07:03]} 28. Rh4 {[%emt 0:00:56]} Rh5 {[%emt 0:00:08]} 29. Rxh5 {[%emt 0:00:22]} gxh5 {[%emt 0:00:09]} 30. Qg5+ {[%emt 0:00:22]} 1-0

[Event "ISR-ch Youth 2019"]
[Site "Jerusalem"]
[Date "2019.04.14"]
[Round "4.10"]
[White "Adlen, Noya"]
[Black "Almog, Shani"]
[Result "0-1"]
[ECO "A47"]
[WhiteElo "1253"]
[BlackElo "1362"]
[Annotator "NA"]
[PlyCount "106"]
[EventDate "2019.04.11"]
[EventType "swiss"]
[EventCountry "ISR"]
[SourceTitle "playchess.com"]
[Source "ChessBase"]
[SourceQuality "1"]
[TimeControl "5400+30"]

1. d4 {[%emt 0:00:00]} e6 {[%emt 0:00:00]} 2. e3 {[%emt 0:00:22]} Nf6 {[%emt 0:00:01]} 3. Nf3 {[%emt 0:00:03]} b6 {[%emt 0:00:58]} 4. b3 {[%emt 0:00:43]} Bb7 {[%emt 0:01:22]} 5. Nbd2 {[%emt 0:00:29]} Be7 {[%emt 0:04:09]} 6. Bb2 {[%emt 0:00:44]} c5 {[%emt 0:01:47]} 7. Bd3 {[%emt 0:00:48]} Nc6 {[%emt 0:01:23]} 8. c4 {[%emt 0:00:44]} cxd4 {[%emt 0:03:42]} 9. exd4 {[%emt 0:00:23]} O-O {[%emt 0:02:44]} 10. Nf1 {[%emt 0:02:08]} Bb4+ {[%emt 0:01:45]} 11. N1d2 {[%emt 0:00:29]} Re8 {[%emt 0:01:26]} 12. O-O {[%emt 0:00:15]} Rc8 {[%emt 0:06:28]} 13. a3 {[%emt 0:13:04]} Bd6 {[%emt 0:01:46]} 14. b4 {[%emt 0:00:30]} Ne7 {[%emt 0:04:17]} 15. Re1 {[%emt 0:15:44]} Ng6 {[%emt 0:05:52]} 16. Rc1 {[%emt 0:04:03]} Bf4 {[%emt 0:04:37]} 17. Rc2 {[%emt 0:06:04]} Bc6 {[%emt 0:06:30]} 18. b5 {[%emt 0:01:07]} Bb7 {[%emt 0:00:34]} 19. Nf1 {[%emt 0:02:49]} Bd6 {[%emt 0:05:06]} 20. Ng3 {[%emt 0:01:49]} Nf4 {[%emt 0:02:04]} 21. Bf1 {[%emt 0:06:37]} Bb8 {[%emt 0:05:15]} 22. c5 {[%emt 0:03:26]} Bd5 {[%emt 0:09:03]} 23. Rc3 {[%emt 0:02:06]} bxc5 {[%emt 0:01:44]} 24. dxc5 {[%emt 0:00:53]} Bc7 {[%emt 0:00:35]} 25. Rc1 {[%emt 0:03:05]} Ba5 {[%emt 0:05:39]} 26. Bc3 {[%emt 0:03:04]} Bxc3 {[%emt 0:00:59]} 27. Rxc3 {[%emt 0:00:04]} Qa5 {[%emt 0:01:43]} 28. Qc1 {[%emt 0:01:36]} Ng6 {[%emt 0:04:01]} 29. Nd4 {[%emt 0:04:44]} Ne7 {[%emt 0:03:19]} 30. Bd3 {[%emt 0:01:56]} Ba8 {[%emt 0:04:19]} 31. Nb3 {[%emt 0:04:57]} Qc7 {[%emt 0:01:30]} 32. Qg5 {[%emt 0:01:23]} h6 {[%emt 0:02:03]} 33. Qd2 {[%emt 0:02:57]} Nfd5 {[%emt 0:01:33]} 34. Rc2 {[%emt 0:00:30]} Nf4 {[%emt 0:01:09]} 35. Bf1 {[%emt 0:00:22]} Ned5 {[%emt 0:00:58]} 36. Ne4 {[%emt 0:00:30]} Rb8 {[%emt 0:01:53]} 37. Nd6 {[%emt 0:00:23]} Rf8 {[%emt 0:00:54]} 38. g3 {[%emt 0:01:44]} Ng6 {[%emt 0:00:46]} 39. Bg2 {[%emt 0:00:57]} Nge7 {[%emt 0:00:17]} 40. Nd4 {[%emt 0:00:21]} Nc8 {[%emt 0:00:53]} 41. Nxc8 {[%emt 0:00:34]} Rfxc8 {[%emt 0:00:06]} 42. a4 {[%emt 0:00:31]} Kh8 {[%emt 0:01:20]} 43. a5 {[%emt 0:00:36]} Qd8 {[%emt 0:01:24]} 44. a6 {[%emt 0:00:34]} Nc7 {[%emt 0:00:57]} 45. Bf1 {[%emt 0:01:37]} Qf6 {[%emt 0:01:13]} 46. Qf4 {[%emt 0:03:28]} Qg6 {[%emt 0:01:23]} 47. Rb2 {[%emt 0:01:49]} Nd5 {[%emt 0:00:32]} 48. Qd2 {[%emt 0:01:01]} Rxc5 {[%emt 0:00:33]} 49. Bd3 {[%emt 0:00:29]} Qf6 {[%emt 0:00:39]} 50. Nb3 {[%emt 0:00:42]} Rc3 {[%emt 0:00:27]} 51. Nc1 {[%emt 0:01:41]} Nc7 {[%emt 0:00:41]} 52. Ne2 {[%emt 0:00:52]} Qf3 {[%emt 0:00:36]} 53. Kf1 {[%emt 0:03:51]} Qg2# {[%emt 0:00:13]} 0-1

[Event "ISR-ch Youth 2019"]
[Site "Jerusalem"]
[Date "2019.04.14"]
[Round "4.11"]
[White "Gadasi, Noam"]
[Black "Shvartsburd, Rebekka"]
[Result "1-0"]
[ECO "E82"]
[WhiteElo "1653"]
[BlackElo "1173"]
[Annotator "NA"]
[PlyCount "85"]
[EventDate "2019.04.11"]
[EventType "swiss"]
[EventCountry "ISR"]
[SourceTitle "playchess.com"]
[Source "ChessBase"]
[SourceQuality "1"]
[TimeControl "5400+30"]

1. d4 {[%emt 0:00:00]} Nf6 {[%emt 0:00:00]} 2. c4 {[%emt 0:00:00]} g6 {[%emt 0:00:00]} 3. Nc3 {[%emt 0:00:00]} Bg7 {[%emt 0:00:00]} 4. e4 {[%emt 0:00:00]} d6 {[%emt 0:00:00]} 5. f3 {[%emt 0:00:15]} O-O {[%emt 0:00:12]} 6. Be3 {[%emt 0:00:07]} b6 {[%emt 0:00:09]} 7. Nge2 {[%emt 0:03:13]} c5 {[%emt 0:00:18]} 8. Qd2 {[%emt 0:01:34]} Nbd7 {[%emt 0:02:00]} 9. d5 {[%emt 0:06:59]} a6 {[%emt 0:01:00]} 10. Ng3 {[%emt 0:01:38]} Rb8 {[%emt 0:04:10]} 11. Be2 {[%emt 0:00:36]} Ne5 {[%emt 0:03:20]} 12. h3 {[%emt 0:02:33]} Qc7 {[%emt 0:04:40]} 13. Rd1 {[%emt 0:01:40]} h5 {[%emt 0:02:48]} 14. O-O {[%emt 0:02:23]} h4 {[%emt 0:00:18]} 15. Nh1 {[%emt 0:00:23]} Nh5 {[%emt 0:12:46]} 16. f4 {[%emt 0:02:23]} Nd7 {[%emt 0:00:18]} 17. Bxh5 {[%emt 0:00:12]} gxh5 {[%emt 0:00:06]} 18. Bf2 {[%emt 0:00:26]} Bf6 {[%emt 0:00:34]} 19. Qe2 {[%emt 0:00:09]} Kg7 {[%emt 0:03:54]} 20. Qxh5 {[%emt 0:01:22]} Rh8 {[%emt 0:00:30]} 21. Qg4+ {[%emt 0:01:36]} Kf8 {[%emt 0:00:11]} 22. Qf3 {[%emt 0:02:58]} b5 {[%emt 0:00:24]} 23. cxb5 {[%emt 0:10:19]} axb5 {[%emt 0:02:09]} 24. b3 {[%emt 0:05:16]} Ba6 {[%emt 0:00:55]} 25. Ne2 {[%emt 0:08:31]} c4 {[%emt 0:01:41]} 26. Bd4 {[%emt 0:01:59]} Bxd4+ {[%emt 0:01:55]} 27. Nxd4 {[%emt 0:00:13]} Qb6 {[%emt 0:00:36]} 28. Kh2 {[%emt 0:00:44]} cxb3 {[%emt 0:00:40]} 29. axb3 {[%emt 0:00:25]} Rc8 {[%emt 0:00:53]} 30. Qf2 {[%emt 0:06:21]} b4 {[%emt 0:01:25]} 31. Rfe1 {[%emt 0:00:36]} Rc3 {[%emt 0:04:21]} 32. e5 {[%emt 0:02:10]} dxe5 {[%emt 0:01:48]} 33. fxe5 {[%emt 0:01:03]} Qg6 {[%emt 0:01:10]} 34. e6 {[%emt 0:06:15]} Nf6 {[%emt 0:04:32]} 35. exf7 {[%emt 0:03:00]} Qxf7 {[%emt 0:02:17]} 36. Ne6+ {[%emt 0:00:46]} Kg8 {[%emt 0:00:39]} 37. Re5 {[%emt 0:01:11]} Rg3 {[%emt 0:01:58]} 38. Ra1 {[%emt 0:05:10]} Bc8 {[%emt 0:00:40]} 39. Ra8 {[%emt 0:00:14]} Kh7 {[%emt 0:00:07]} 40. Rh5+ {[%emt 0:00:30]} Qxh5 {[%emt 0:00:36]} 41. Nxg3 {[%emt 0:01:03]} hxg3+ {[%emt 0:01:43]} 42. Qxg3 {[%emt 0:00:15]} Qxd5 {[%emt 0:01:52]} 43. Qg7# {[%emt 0:00:09]} 1-0

[Event "ISR-ch Youth 2019"]
[Site "Jerusalem"]
[Date "2019.04.14"]
[Round "5.1"]
[White "Milikow, Yoav"]
[Black "Globus, Or"]
[Result "1/2-1/2"]
[ECO "E91"]
[WhiteElo "2256"]
[BlackElo "2346"]
[Annotator "NA"]
[PlyCount "69"]
[EventDate "2019.04.11"]
[EventType "swiss"]
[EventCountry "ISR"]
[SourceTitle "playchess.com"]
[Source "ChessBase"]
[SourceQuality "1"]
[TimeControl "5400+30"]

1. d4 {[%emt 0:00:00]} Nf6 {[%emt 0:00:00]} 2. c4 {[%emt 0:01:46]} g6 {[%emt 0:00:00]} 3. Nc3 {[%emt 0:00:25]} Bg7 {[%emt 0:00:04]} 4. e4 {[%emt 0:00:12]} d6 {[%emt 0:00:03]} 5. Be2 {[%emt 0:00:10]} O-O {[%emt 0:00:53]} 6. Be3 {[%emt 0:01:20]} Nbd7 {[%emt 0:02:30]} 7. Nf3 {[%emt 0:00:30]} a6 {[%emt 0:01:11]} 8. O-O {[%emt 0:01:18]} c6 {[%emt 0:00:34]} 9. Qc2 {[%emt 0:08:50]} b5 {[%emt 0:00:39]} 10. d5 {[%emt 0:05:10]} cxd5 {[%emt 0:08:51]} 11. cxd5 {[%emt 0:00:21]} Bb7 {[%emt 0:02:33]} 12. Nd4 $11 {[%emt 0:18:04]} b4 {[%emt 0:16:13]} 13. Na4 {[%emt 0:01:13]} Rc8 {[%emt 0:05:19]} 14. Nc6 {[%emt 0:06:04]} Ne5 {[%emt 0:09:20]} 15. Nxd8 {[%emt 0:09:54]} Rxc2 {[%emt 0:00:09]} 16. Bd1 {[%emt 0:00:09]} Rc7 {[%emt 0:02:21]} 17. Nxb7 {[%emt 0:00:16]} Rxb7 {[%emt 0:00:18]} 18. f3 {[%emt 0:03:53]} Rc7 {[%emt 0:17:40]} 19. Bb6 {[%emt 0:05:14]} Rcc8 {[%emt 0:01:42]} 20. Be2 {[%emt 0:02:10]} Nfd7 {[%emt 0:02:32]} 21. Bf2 {[%emt 0:02:26]} Nc4 {[%emt 0:01:39]} 22. Rac1 {[%emt 0:01:19]} Nxb2 {[%emt 0:01:51]} 23. Nxb2 {[%emt 0:00:37]} Bxb2 {[%emt 0:00:52]} 24. Rxc8 {[%emt 0:03:04]} Rxc8 {[%emt 0:00:58]} 25. Bxa6 {[%emt 0:00:02]} Rc2 {[%emt 0:03:25]} 26. Bd3 {[%emt 0:02:12]} Rd2 {[%emt 0:02:10]} 27. Bb5 {[%emt 0:03:00]} Nc5 {[%emt 0:04:50]} 28. Rb1 {[%emt 0:01:36]} Rc2 {[%emt 0:03:52]} 29. Kf1 {[%emt 0:01:29]} Ba3 {[%emt 0:01:42]} 30. Ra1 {[%emt 0:01:43]} Bb2 {[%emt 0:00:10]} 31. Rb1 {[%emt 0:00:09]} Ba3 {[%emt 0:00:12]} 32. Ra1 {[%emt 0:00:06]} Bb2 {[%emt 0:00:05]} 33. Rb1 {[%emt 0:00:12]} Ba3 {[%emt 0:00:22]} 34. Ra1 {[%emt 0:00:13]} Bb2 {[%emt 0:00:10]} 35. Rb1 {[%emt 0:00:06]} 1/2-1/2